bitfinex-derivatives/quotes_ETHF0:USTF0_20250629
["timestamp","ask_amount","ask_price","bid_price","bid_amount"]
[1751182964665,2.89177974,2438.1,2438.0,0.7267]
[1751182965570,2.89177974,2438.1,2438.0,1.54676]
[1751182966070,2.89177974,2438.1,2438.0,0.7267]
[1751182966468,0.82006,2438.0,2437.9,3.2078]
[1751182968269,0.82006,2438.0,2437.9,4.43421668]
[1751182970273,0.82006,2438.0,2437.9,5.25430668]
[1751182970569,0.82006,2438.0,2437.9,5.84821668]
[1751182972676,0.82006,2438.0,2437.9,4.6218]
[1751182974874,0.82006,2438.0,2437.9,5.44189]
[1751182975677,0.82006,2438.0,2437.9,4.6218]
[1751182976377,0.82006,2438.0,2437.9,5.44189]
[1751182976677,0.82006,2438.0,2437.9,4.6218]
[1751182977877,0.82006,2438.0,2437.9,5.44189]
[1751182978179,0.82006,2438.0,2437.9,4.02789]
[1751182978377,0.82006,2438.0,2437.9,3.2078]
[1751182978670,0.82006,2438.0,2437.9,4.02789]
[1751182979977,0.82006,2438.0,2437.9,5.38879]
[1751182982278,0.82006,2438.0,2437.9,2.18099]
[1751182982873,0.82003,2438.2,2438.1,0.82003]
[1751182983079,27.94802622,2438.3,2438.2,0.81999]
[1751182983278,36.27977596,2438.3,2438.2,0.81999]
[1751182983975,36.27977596,2438.3,2438.2,1.3919]
[1751182984174,0.81999,2438.2,2438.1,1.49762]
[1751182985578,0.81999,2438.2,2438.1,0.6776]
[1751182985883,2.89173974,2438.2,2438.1,0.6776]
[1751182986273,0.82003,2438.1,2438.0,1.55144]
[1751182986467,2.89177974,2438.1,2438.0,1.55144]
[1751182988784,2.07174974,2438.1,2438.0,1.55144]
[1751182988983,2.89177974,2438.1,2438.0,1.55144]
[1751182989180,2.89177974,2438.1,2438.0,0.7314]
[1751182989882,2.89177974,2438.1,2438.0,1.55146]
[1751182991578,2.89177974,2438.1,2438.0,0.7314]
[1751182992485,2.89177974,2438.1,2438.0,1.55146]
[1751182995894,2.89177974,2438.1,2438.0,0.7314]
[1751182996187,2.89177974,2438.1,2438.0,1.55146]
[1751182996188,3.60367974,2438.1,2438.0,1.55146]
[1751182996388,3.60367974,2438.1,2438.0,0.7314]
[1751182996692,3.60367974,2438.1,2438.0,1.55146]
[1751183001693,9.87067974,2438.1,2438.0,1.55146]
[1751183006496,7.79893,2438.1,2438.0,1.55146]
[1751183007996,9.87067974,2438.1,2438.0,1.55146]
[1751183009098,7.79893,2438.1,2438.0,1.55146]
[1751183012903,6.9789,2438.1,2438.0,1.55146]
[1751183013502,7.79893,2438.1,2438.0,1.55146]
[1751183014500,9.87067974,2438.1,2438.0,1.55146]
[1751183014702,7.79893,2438.1,2438.0,1.55146]
[1751183014903,6.9789,2438.1,2438.0,1.55146]
[1751183015402,11.12239948,2438.1,2438.0,1.55146]
[1751183015603,11.94242948,2438.1,2438.0,1.55146]
[1751183018004,11.12239948,2438.1,2438.0,1.55146]
[1751183019710,11.94242948,2438.1,2438.0,1.55146]
[1751183020009,11.12239948,2438.1,2438.0,1.55146]
[1751183020608,11.94242948,2438.1,2438.0,1.55146]
[1751183021808,11.12239948,2438.1,2438.0,1.55146]
[1751183022606,11.94242948,2438.1,2438.0,1.55146]
[1751183022906,11.12239948,2438.1,2438.0,1.55146]
[1751183024411,11.94242948,2438.1,2438.0,1.55146]
[1751183024910,9.87067974,2438.1,2438.0,1.55146]
[1751183025816,9.87067974,2438.1,2438.0,0.82006]
[1751183026105,11.94242948,2438.1,2438.0,0.82006]
[1751183029608,11.12239948,2438.1,2438.0,0.82006]
[1751183031411,9.05064974,2438.1,2438.0,0.82006]
[1751183033618,3.27703622,2438.3,2438.2,0.81999]
[1751183033817,33.00274974,2438.3,2438.2,0.81999]
[1751183034921,33.00274974,2438.3,2438.2,2.27319]
[1751183038321,3.2078,2438.4,2438.3,0.81996]
[1751183038527,36.20854974,2438.4,2438.3,2.14396]
[1751183041724,36.20854974,2438.4,2438.3,0.81996]
[1751183044724,33.00074974,2438.4,2438.3,0.81996]
[1751183045024,33.82067974,2438.4,2438.3,0.81996]
[1751183047326,33.00074974,2438.4,2438.3,0.81996]
[1751183050736,33.68824974,2438.4,2438.3,0.81996]
[1751183055642,34.50817974,2438.4,2438.3,0.81996]
[1751183056543,33.68824974,2438.4,2438.3,0.81996]
[1751183058541,34.50817974,2438.4,2438.3,0.81996]
[1751183058742,33.68824974,2438.4,2438.3,0.81996]
[1751183060436,33.00074974,2438.4,2438.3,0.81996]
[1751183060643,0.7152,2438.6,2438.5,0.81989]
[1751183060944,9.04594974,2438.6,2438.5,0.81989]
[1751183061145,34.53180974,2438.6,2438.5,0.81989]
[1751183062043,33.71194974,2438.6,2438.5,0.81989]
[1751183063249,5.24399596,2438.6,2438.5,0.81989]
[1751183063546,36.16899596,2438.6,2438.5,0.81989]
[1751183064249,5.24399596,2438.6,2438.5,0.81989]
[1751183064544,11.50299596,2438.6,2438.5,0.81989]
[1751183064747,36.16899596,2438.6,2438.5,0.81989]
[1751183065244,4.52879596,2438.6,2438.5,0.81989]
[1751183065546,4.52879596,2438.6,2438.5,4.02769]
[1751183065547,32.99674974,2438.6,2438.5,4.02769]
[1751183065946,32.99674974,2438.6,2438.5,4.70419]
[1751183070957,8.33074974,2438.6,2438.5,4.70419]
[1751183071157,32.99574974,2438.6,2438.5,4.70419]
[1751183075652,32.99574974,2438.6,2438.5,1.49639]
[1751183075852,32.99574974,2438.6,2438.5,4.70419]
[1751183082770,32.99574974,2438.6,2438.5,1.49639]
[1751183083068,32.99574974,2438.6,2438.5,4.70419]
[1751183083665,33.65594974,2438.6,2438.5,4.02769]
[1751183085265,34.47580974,2438.6,2438.5,4.02769]
[1751183092873,34.47580974,2438.6,2438.5,0.81989]
[1751183093065,34.47580974,2438.6,2438.5,4.02769]
[1751183097878,34.47580974,2438.6,2438.5,0.81989]
[1751183098287,34.47580974,2438.6,2438.5,4.02769]
[1751183100274,34.47580974,2438.6,2438.5,3.2078]
[1751183100876,35.88150974,2438.6,2438.5,3.2078]
[1751183101679,0.81993,2438.4,2438.3,0.81994]
[1751183101881,26.73374974,2438.4,2438.2,3.02305987]
[1751183102081,26.73374974,2438.4,2438.3,0.81996]
[1751183102381,27.41444974,2438.4,2438.3,0.81996]
[1751183103183,28.23437974,2438.4,2438.3,0.81996]
[1751183103483,27.41444974,2438.4,2438.3,0.81996]
[1751183103786,28.23437974,2438.4,2438.3,0.81996]
[1751183104093,27.41444974,2438.4,2438.3,0.81996]
[1751183104885,28.23437974,2438.4,2438.3,0.81996]
[1751183105285,27.41444974,2438.4,2438.3,0.81996]
[1751183106185,28.23437974,2438.4,2438.3,0.81996]
[1751183117495,27.55367974,2438.4,2438.3,0.81996]
[1751183117986,26.73374974,2438.4,2438.3,0.81996]
[1751183118586,27.55367974,2438.4,2438.3,0.81996]
[1751183119695,26.73374974,2438.4,2438.3,0.81996]
[1751183121093,27.55367974,2438.4,2438.3,0.81996]
[1751183121797,33.81067974,2438.4,2438.3,0.81996]
[1751183149421,0.81996,2438.3,2438.2,2.29405987]
[1751183149627,0.81996,2438.3,2438.2,1.63065987]
[1751183149825,0.81999,2438.2,2438.1,2.45065987]
[1751183150021,31.43933974,2438.2,2438.1,2.45065987]
[1751183150228,31.43933974,2438.2,2438.1,0.82]
[1751183152630,28.23153974,2438.2,2438.1,0.82]
[1751183152824,31.43933974,2438.2,2438.1,0.82]
[1751183153228,31.43933974,2438.2,2438.0,2.33575987]
[1751183153229,0.82003,2438.1,2438.0,3.15578987]
[1751183154430,0.82003,2438.1,2438.0,1.52513]
[1751183157531,0.82003,2438.1,2438.0,0.7051]
[1751183157733,0.82003,2438.1,2438.0,1.52516]
[1751183158040,0.82003,2438.1,2438.0,0.7051]
[1751183159435,0.82009,2437.9,2437.8,1.63065987]
[1751183159643,0.82009,2437.9,2437.7,1.63065987]
[1751183159644,0.82013,2437.8,2437.7,1.63065987]
[1751183159829,6.9383,2437.8,2437.6,2.36365987]
[1751183160033,27.55390974,2437.7,2437.6,3.18385987]
[1751183161343,27.55390974,2437.7,2437.6,1.5532]
[1751183164046,27.55390974,2437.7,2437.6,0.733]
[1751183164543,27.55390974,2437.7,2437.6,1.5532]
[1751183167148,27.55390974,2437.7,2437.6,0.733]
[1751183167540,0.8202,2437.6,2437.5,4.46977615]
[1751183169450,0.82026,2437.4,2437.3,0.7256]
[1751183169651,2.89200974,2437.4,2437.3,0.7256]
[1751183169851,2.89200974,2437.4,2437.3,1.5459]
[1751183170351,2.89200974,2437.4,2437.3,0.7256]
[1751183170753,2.89200974,2437.4,2437.3,1.5459]
[1751183171053,2.89200974,2437.4,2437.3,0.7256]
[1751183171250,0.82036,2437.1,2437.0,3.2078]
[1751183171450,33.81610974,2437.1,2437.0,3.2078]
[1751183173354,0.82043,2436.9,2436.8,1.52534]
[1751183173553,27.56617974,2436.9,2436.8,1.52534]
[1751183173751,26.74574974,2436.9,2436.8,1.52534]
[1751183175762,27.56617974,2436.9,2436.8,1.52534]
[1751183176056,27.56617974,2436.9,2436.8,1.52536]
[1751183178853,27.56617974,2436.9,2436.8,0.7049]
[1751183179157,27.56617974,2436.9,2436.8,1.52536]
[1751183181760,26.74574974,2436.9,2436.8,1.52536]
[1751183182058,27.56617974,2436.9,2436.8,1.52536]
[1751183184661,27.56617974,2436.9,2436.8,0.7049]
[1751183184862,0.82046,2436.8,2436.7,4.11183365]
[1751183185062,7.74766,2436.8,2436.7,4.11183365]
[1751183186162,7.74766,2436.8,2436.7,0.90403365]
[1751183186462,7.74766,2436.8,2436.7,0.08356365]
[1751183186763,7.74766,2436.8,2436.7,0.90406365]
[1751183189262,6.9272,2436.8,2436.7,0.90406365]
[1751183189665,8.33474974,2436.8,2436.7,4.11186365]
[1751183189958,8.33474974,2436.8,2436.7,5.53986365]
[1751183190161,9.15520974,2436.8,2436.7,5.53986365]
[1751183191664,9.15520974,2436.8,2436.7,4.11186365]
[1751183192759,9.15520974,2436.8,2436.7,0.90406365]
[1751183194770,8.33474974,2436.8,2436.7,0.90406365]
[1751183195659,9.15520974,2436.8,2436.7,0.90406365]
[1751183203674,6.263,2436.8,2436.7,0.90406365]
[1751183203876,30.939,2436.8,2436.7,3.00406365]
[1751183208883,2.89218974,2436.9,2436.8,0.82046]
[1751183209073,0.82046,2436.8,2436.7,3.00403365]
[1751183211675,31.75646,2436.8,2436.7,3.00403365]
[1751183212481,2.89220974,2436.9,2436.8,0.82046]
[1751183212679,33.82820974,2436.9,2436.8,0.82046]
[1751183221095,33.82820974,2436.9,2436.7,0.08356365]
[1751183221300,0.82046,2436.8,2436.7,0.90404365]
[1751183223801,31.75546,2436.8,2436.7,0.90404365]
[1751183230803,32.47786,2436.8,2436.7,0.90404365]
[1751183241215,32.47786,2436.8,2436.7,0.08356365]
[1751183242012,32.47786,2436.8,2436.7,0.90406365]
[1751183246120,34.54960974,2436.8,2436.7,0.90406365]
[1751183251631,34.54960974,2436.8,2436.7,0.08356365]
[1751183252129,2.89220974,2436.8,2436.7,0.90406365]
[1751183252430,33.82720974,2436.8,2436.7,0.90406365]
[1751183252825,33.82720974,2436.8,2436.7,0.08356365]
[1751183254232,33.82720974,2436.8,2436.7,0.90406365]
[1751183269646,33.82720974,2436.8,2436.7,0.08356365]
[1751183269945,35.89895948,2436.8,2436.7,0.08356365]
[1751183270344,33.82720974,2436.8,2436.7,0.08356365]
[1751183270546,34.51440974,2436.8,2436.7,0.08356365]
[1751183271141,36.58615948,2436.8,2436.7,0.08356365]
[1751183272246,34.51440974,2436.8,2436.7,0.08356365]
[1751183273446,36.58615948,2436.8,2436.7,0.08356365]
[1751183273845,34.51440974,2436.8,2436.7,0.08356365]
[1751183279459,36.58615948,2436.8,2436.7,0.08356365]
[1751183281261,34.51440974,2436.8,2436.7,0.08356365]
[1751183283762,36.58615948,2436.8,2436.7,0.08356365]
[1751183286662,36.58615948,2436.8,2436.6,0.6937]
[1751183286663,0.82053,2436.6,2436.5,1.63065987]
[1751183286862,27.56727974,2436.6,2436.5,1.63065987]
[1751183287065,0.82057,2436.5,2436.4,7.10514987]
[1751183287254,7.07957,2436.5,2436.4,7.10514987]
[1751183287454,7.07957,2436.5,2436.4,6.37784987]
[1751183287659,7.78027,2436.5,2436.4,5.55725987]
[1751183287854,7.78027,2436.5,2436.4,6.37785987]
[1751183288464,7.78027,2436.5,2436.4,5.55725987]
[1751183290863,7.78027,2436.5,2436.4,6.37785987]
[1751183291265,7.78027,2436.5,2436.4,5.55725987]
[1751183292062,7.78027,2436.5,2436.4,3.9266]
[1751183296460,7.78027,2436.5,2436.4,0.7188]
[1751183296667,0.82063,2436.3,2436.2,0.82065]
[1751183296859,27.56837974,2436.3,2436.2,1.52725]
[1751183297054,27.56837974,2436.3,2436.2,0.7066]
[1751183299065,0.82067,2436.2,2436.1,3.9157]
[1751183299265,7.07967,2436.2,2436.1,3.9157]
[1751183299467,7.07967,2436.2,2436.1,5.3417]
[1751183301469,7.07967,2436.2,2436.1,2.1339]
[1751183301666,7.07967,2436.2,2436.1,0.7079]
[1751183302068,7.07967,2436.2,2436.1,1.5286]
[1751183303973,7.07967,2436.2,2436.1,2.8611]
[1751183305371,7.07967,2436.2,2436.1,2.0404]
[1751183305571,7.07967,2436.2,2436.1,2.8611]
[1751183305772,7.07967,2436.2,2436.1,2.0404]
[1751183307077,7.07967,2436.2,2436.1,2.8611]
[1751183307479,7.07967,2436.2,2436.1,2.0404]
[1751183307674,7.07967,2436.2,2436.1,0.7079]
[1751183308379,0.82077,2435.9,2435.8,0.6912]
[1751183308571,33.01074974,2435.9,2435.8,1.512]
[1751183308883,33.83151974,2435.9,2435.8,1.512]
[1751183309879,2.89251974,2435.9,2435.8,1.512]
[1751183310079,33.83651974,2435.9,2435.8,1.512]
[1751183310482,31.76477,2435.9,2435.8,1.512]
[1751183310681,31.76677,2435.9,2435.8,0.6912]
[1751183311174,31.76677,2435.9,2435.8,2.0253]
[1751183312582,31.76777,2435.9,2435.8,2.0253]
[1751183313282,30.947,2435.9,2435.6,41.62085]
[1751183313481,0.82083,2435.7,2435.6,42.35375]
[1751183313672,2.89257974,2435.7,2435.6,43.70065]
[1751183315684,2.07174974,2435.7,2435.6,43.70065]
[1751183319184,2.89257974,2435.7,2435.6,43.70065]
[1751183320086,2.07174974,2435.7,2435.6,43.70065]
[1751183322185,2.07174974,2435.7,2435.6,46.90845]
[1751183324286,2.89257974,2435.7,2435.6,46.90845]
[1751183324786,2.89257974,2435.7,2435.6,43.70065]
[1751183325085,2.07174974,2435.7,2435.6,46.90845]
[1751183326682,26.75674974,2435.8,2435.7,0.82083]
[1751183326878,26.75674974,2435.8,2435.7,2.14313]
[1751183332291,3.13714622,2436.1,2436.0,0.82073]
[1751183332491,33.69884974,2436.1,2436.0,0.82073]
[1751183333392,34.51956974,2436.1,2436.0,0.82073]
[1751183333592,3.57256974,2436.1,2436.0,0.82073]
[1751183333890,34.52256974,2436.1,2436.0,0.82073]
[1751183334086,36.97961596,2436.1,2436.0,0.82073]
[1751183334495,34.52256974,2436.1,2436.0,0.82073]
[1751183335586,33.02174974,2436.1,2436.0,0.82073]
[1751183335890,33.84244974,2436.1,2436.0,0.82073]
[1751183336691,2.89244974,2436.1,2436.0,0.82073]
[1751183336994,33.84144974,2436.1,2436.0,0.82073]
[1751183338593,33.02074974,2436.1,2436.0,0.82073]
[1751183338788,9.04024974,2436.1,2436.0,0.82073]
[1751183338987,33.72624974,2436.1,2436.0,0.82073]
[1751183339695,34.54694974,2436.1,2436.0,0.82073]
[1751183341092,3.59894974,2436.1,2436.0,0.82073]
[1751183341291,33.72324974,2436.1,2436.0,1.51993]
[1751183342586,33.01674974,2436.1,2436.0,1.51993]
[1751183343995,33.83744974,2436.1,2436.0,1.51993]
[1751183344196,33.01674974,2436.1,2436.0,1.51993]
[1751183346395,8.41919596,2436.3,2436.2,0.82067]
[1751183346593,33.01574974,2436.3,2436.2,0.82067]
[1751183349802,6.261,2436.3,2436.2,0.82067]
[1751183350102,0.6712,2436.5,2436.4,0.8206]
[1751183350394,6.9322,2436.5,2436.4,0.8206]
[1751183350598,31.6182,2436.5,2436.4,0.8206]
[1751183351102,33.68994974,2436.5,2436.4,0.8206]
[1751183351401,3.96172622,2436.8,2436.7,0.8205]
[1751183351596,35.22142974,2436.8,2436.7,0.8205]
[1751183352399,35.23042974,2436.8,2436.7,0.8205]
[1751183352895,34.40994974,2436.8,2436.7,0.8205]
[1751183353802,35.23040974,2436.8,2436.7,0.8205]
[1751183353998,10.53540974,2436.8,2436.7,0.8205]
[1751183354204,35.22840974,2436.8,2436.7,0.8205]
[1751183357601,2.20266,2436.8,2436.7,0.8205]
[1751183357803,34.54620974,2436.8,2436.7,0.8205]
[1751183357998,33.72574974,2436.8,2436.7,0.8205]
[1751183358399,34.54620974,2436.8,2436.7,0.8205]
[1751183366302,9.03574974,2436.8,2436.7,0.8205]
[1751183366500,8.33774974,2436.8,2436.7,0.8205]
[1751183366705,49.35074974,2436.9,2436.8,0.82046]
[1751183366906,55.61674974,2436.9,2436.8,0.82046]
[1751183367105,80.30374974,2436.9,2436.8,0.82046]
[1751183368607,55.61674974,2436.9,2436.8,0.82046]
[1751183368808,80.30374974,2436.9,2436.8,0.82046]
[1751183370008,80.30374974,2436.9,2436.8,2.22746]
[1751183372706,3.2078,2437.1,2437.0,0.8204]
[1751183372912,2.07174974,2437.0,2436.9,1.49083]
[1751183373608,26.75574974,2437.0,2436.9,1.49083]
[1751183379911,26.75074974,2437.0,2436.9,1.49083]
[1751183380114,26.75074974,2437.0,2436.9,2.87813]
[1751183380517,0.82033,2437.2,2437.1,0.82036]
[1751183380713,33.83607974,2437.2,2437.1,0.82036]
[1751183393523,33.82907974,2437.2,2437.1,0.82036]
[1751183404433,33.82907974,2437.2,2437.0,0.82037]
[1751183404732,2.07174974,2437.1,2437.0,0.82037]
[1751183404934,2.89210974,2437.1,2437.0,0.82037]
[1751183408542,3.11934622,2437.3,2437.0,0.82037]
[1751183408543,2.45704622,2437.3,2437.2,0.82033]
[1751183408746,6.259,2437.4,2437.3,0.8203]
[1751183408947,6.259,2437.4,2437.3,2.1512]
[1751183409149,33.39504622,2437.5,2437.4,0.82026]
[1751183409343,33.39504622,2437.5,2437.4,2.20156]
[1751183409543,34.21527622,2437.5,2437.4,2.20156]
[1751183409946,33.39504622,2437.5,2437.4,2.20156]
[1751183410145,34.21527622,2437.5,2437.4,2.20156]
[1751183410852,33.39504622,2437.5,2437.4,2.20156]
[1751183411050,33.40304622,2437.5,2437.4,2.20156]
[1751183412549,8.71604622,2437.5,2437.4,2.20156]
[1751183412750,2.45704622,2437.6,2437.5,0.82023]
[1751183412952,2.45704622,2437.6,2437.5,6.10763]
[1751183413355,35.47579596,2437.7,2437.6,0.8202]
[1751183413648,35.47579596,2437.7,2437.6,2.1764]
[1751183413849,35.47579596,2437.7,2437.6,2.8501]
[1751183414053,36.29595596,2437.7,2437.6,2.8501]
[1751183414255,36.29895596,2437.7,2437.6,2.8501]
[1751183414457,33.84190974,2437.7,2437.6,2.8501]
[1751183414856,33.02174974,2437.7,2437.6,2.8501]
[1751183418259,8.33074974,2437.7,2437.6,2.8501]
[1751183418562,9.15090974,2437.7,2437.6,2.8501]
[1751183418752,8.33074974,2437.7,2437.6,2.8501]
[1751183419661,6.259,2437.7,2437.6,2.8501]
[1751183419858,8.33074974,2437.7,2437.6,2.8501]
[1751183432867,1.52792,2437.9,2437.8,0.82013]
[1751183433068,34.54366974,2437.9,2437.8,0.82013]
[1751183437667,2.77954974,2437.9,2437.8,0.82013]
[1751183437873,6.267,2437.9,2437.8,4.02793]
[1751183438067,30.941,2437.9,2437.8,4.02793]
[1751183438262,5.66484622,2438.1,2437.8,3.2078]
[1751183438481,3.2078,2438.1,2438.0,0.82006]
[1751183438772,8.33874974,2438.2,2438.1,0.82003]
[1751183439068,33.01774974,2438.2,2438.1,4.02783]
[1751183439272,8.33874974,2438.2,2438.1,4.02783]
[1751183439477,33.02074974,2438.2,2438.1,4.02783]
[1751183439670,8.33874974,2438.2,2438.1,4.02783]
[1751183439868,33.02074974,2438.2,2438.1,4.02783]
[1751183440478,47.9503,2438.3,2438.2,0.81999]
[1751183440777,80.97004974,2438.3,2438.2,0.81999]
[1751183440968,80.97004974,2438.3,2438.2,1.52159]
[1751183442977,81.79000974,2438.3,2438.2,1.52159]
[1751183443180,81.79000974,2438.3,2438.2,0.81999]
[1751183444467,81.78500974,2438.3,2438.2,0.81999]
[1751183460289,81.78503974,2438.3,2438.2,0.81999]
[1751183461783,80.96504974,2438.3,2438.2,0.81999]
[1751183462890,50.02204974,2438.3,2438.2,0.81999]
[1751183463079,80.94704974,2438.3,2438.2,0.81999]
[1751183464391,81.76700974,2438.3,2438.2,0.81999]
[1751183469194,80.94704974,2438.3,2438.2,0.81999]
[1751183469494,81.76700974,2438.3,2438.2,0.81999]
[1751183475104,57.10300974,2438.3,2438.2,0.81999]
[1751183475303,81.76600974,2438.3,2438.2,0.81999]
[1751183476605,34.50000974,2438.3,2438.2,0.81999]
[1751183500538,34.50000974,2438.3,2438.2,1.53589]
[1751183506439,0.81999,2438.2,2438.1,3.2078]
[1751183506641,0.81999,2438.2,2438.1,0.82]
[1751183514845,0.81999,2438.2,2438.0,0.6714]
[1751183515045,27.55377974,2438.1,2438.0,0.6714]
[1751183515250,28.21717974,2438.1,2438.0,1.49146]
[1751183518254,27.39714974,2438.1,2438.0,1.49146]
[1751183518850,28.21717974,2438.1,2438.0,1.49146]
[1751183520855,27.39714974,2438.1,2438.0,1.49146]
[1751183525159,28.21717974,2438.1,2438.0,1.49146]
[1751183525759,27.39714974,2438.1,2438.0,1.49146]
[1751183526162,28.21717974,2438.1,2438.0,1.49146]
[1751183526955,27.39714974,2438.1,2438.0,1.49146]
[1751183527461,28.21717974,2438.1,2438.0,1.49146]
[1751183528662,27.39714974,2438.1,2438.0,1.49146]
[1751183549574,27.39714974,2438.1,2438.0,0.82006]
[1751183549772,28.21717974,2438.1,2438.0,0.82006]
[1751183549972,27.39714974,2438.1,2438.0,0.82006]
[1751183551378,27.39714974,2438.1,2438.0,1.50836]
[1751183551880,2.07174974,2438.3,2438.0,4.81020974]
[1751183552081,30.915,2438.2,2438.1,0.82003]
[1751183558086,30.915,2438.2,2438.1,4.02783]
[1751183558687,3.59969974,2438.4,2438.3,0.81996]
[1751183558885,34.51469974,2438.4,2438.3,0.81996]
[1751183562983,33.69474974,2438.4,2438.3,0.81996]
[1751183564293,2.77974974,2438.4,2438.3,0.81996]
[1751183564480,2.45704622,2438.5,2438.4,0.81993]
[1751183564681,30.914,2438.5,2438.4,6.09947974]
[1751183564885,6.02902596,2438.7,2438.6,0.81986]
[1751183565089,11.46419596,2438.7,2438.6,0.81986]
[1751183565290,36.12319596,2438.7,2438.6,0.81986]
[1751183565586,11.46419596,2438.7,2438.6,0.81986]
[1751183565793,33.37104622,2438.7,2438.6,0.81986]
[1751183565990,30.914,2438.7,2438.6,0.81986]
[1751183569297,31.73383,2438.7,2438.6,0.81986]
[1751183577593,6.255,2438.7,2438.6,0.81986]
[1751183577796,30.91,2438.7,2438.6,0.81986]
[1751183578896,31.72983,2438.7,2438.6,0.81986]
[1751183579600,30.91,2438.7,2438.6,0.81986]
[1751183580400,50.13956974,2438.8,2438.7,0.81983]
[1751183580601,81.04656974,2438.8,2438.7,0.81983]
[1751183584703,0.81983,2438.7,2438.6,2.15413]
[1751183588201,0.81981,2438.8,2438.7,0.8198]
[1751183588507,31.72581,2438.8,2438.7,0.8198]
[1751183589004,0.7296,2439.0,2438.7,2.07174974]
[1751183589303,6.9826,2439.0,2438.9,2.89150974]
[1751183589495,30.906,2439.0,2438.9,2.89150974]
[1751183589699,30.906,2439.0,2438.8,0.681]
[1751183589899,0.81985,2438.7,2438.6,0.81984]
[1751183590093,27.54459974,2438.7,2438.6,0.81984]
[1751183594807,26.72474974,2438.7,2438.6,0.81984]
[1751183595013,2.78214974,2438.8,2438.7,0.81983]
[1751183595310,27.43714974,2438.8,2438.7,0.81983]
[1751183595499,28.25693974,2438.8,2438.7,0.81983]
[1751183598207,3.60193974,2438.8,2438.7,0.81983]
[1751183598512,28.25593974,2438.8,2438.7,0.81983]
[1751183601014,3.60193974,2438.8,2438.7,0.81983]
[1751183601202,28.25793974,2438.8,2438.7,0.81983]
[1751183602208,2.78214974,2438.8,2438.7,0.81983]
[1751183602415,26.72774974,2438.8,2438.7,0.81983]
[1751183603915,26.72674974,2438.8,2438.7,0.81983]
[1751183604909,2.07174974,2438.8,2438.7,0.81983]
[1751183605210,26.72674974,2438.8,2438.7,0.81983]
[1751183606917,2.07174974,2438.8,2438.7,0.81983]
[1751183607215,26.72574974,2438.8,2438.7,0.81983]
[1751183608017,26.72574974,2438.8,2438.7,4.02763]
[1751183608519,26.72574974,2438.8,2438.7,0.81983]
[1751183608712,26.72574974,2438.8,2438.7,4.02763]
[1751183611825,27.45794974,2438.8,2438.7,4.02763]
[1751183612722,2.80394974,2438.8,2438.7,4.02763]
[1751183612926,27.45494974,2438.8,2438.7,4.02763]
[1751183615927,27.45494974,2438.8,2438.7,4.73133]
[1751183616228,27.45494974,2438.8,2438.7,5.95961889]
[1751183620628,27.45494974,2438.8,2438.7,2.75181889]
[1751183620824,27.45494974,2438.8,2438.7,5.95961889]
[1751183624141,27.45494974,2438.8,2438.7,2.75181889]
[1751183624341,27.45494974,2438.8,2438.7,5.95961889]
[1751183625241,2.80394974,2438.8,2438.7,5.95961889]
[1751183630346,2.80394974,2438.8,2438.7,4.73133]
[1751183631840,0.7322,2438.8,2438.7,4.73133]
[1751183632048,2.80394974,2438.8,2438.7,4.73133]
[1751183634257,2.80394974,2438.8,2438.7,6.36198987]
[1751183640645,2.80394974,2438.8,2438.7,5.65828987]
[1751183643656,2.80394974,2438.8,2438.7,2.45048987]
[1751183643858,2.80394974,2438.8,2438.7,5.65828987]
[1751183658676,2.80394974,2438.8,2438.7,2.45048987]
[1751183658872,2.80394974,2438.8,2438.7,5.65828987]
[1751183659969,2.80394974,2438.8,2438.7,2.45048987]
[1751183660271,2.80394974,2438.8,2438.7,5.65828987]
[1751183664376,2.80394974,2438.8,2438.7,2.45048987]
[1751183664578,2.80394974,2438.8,2438.7,5.65828987]
[1751183665775,2.80394974,2438.8,2438.7,2.45048987]
[1751183665976,2.80394974,2438.8,2438.7,5.65828987]
[1751183666877,0.7322,2438.8,2438.7,5.65828987]
[1751183667080,2.07174974,2438.8,2438.7,5.65828987]
[1751183674286,2.77614974,2438.8,2438.7,5.65828987]
[1751183685700,3.59593974,2438.8,2438.7,5.65828987]
[1751183686201,2.77614974,2438.8,2438.7,5.65828987]
[1751183687801,2.77614974,2438.8,2438.7,2.45048987]
[1751183688103,2.77614974,2438.8,2438.7,5.65828987]
[1751183704418,3.59593974,2438.8,2438.7,5.65827987]
[1751183704620,7.08788948,2438.8,2438.7,5.65827987]
[1751183704821,5.01613974,2438.8,2438.7,5.65827987]
[1751183705020,7.08788948,2438.8,2438.7,5.65827987]
[1751183705710,2.77614974,2438.8,2438.7,5.65827987]
[1751183706214,3.59593974,2438.8,2438.7,5.65827987]
[1751183706822,3.59593974,2438.8,2438.7,2.45047987]
[1751183707022,3.59593974,2438.8,2438.7,5.65827987]
[1751183708024,3.59593974,2438.8,2438.7,2.45047987]
[1751183708229,3.59593974,2438.8,2438.7,5.65827987]
[1751183708924,2.77614974,2438.8,2438.7,5.65827987]
[1751183710127,3.59593974,2438.8,2438.7,5.65827987]
[1751183712031,2.77614974,2438.8,2438.7,5.65827987]
[1751183712226,3.59593974,2438.8,2438.7,5.65827987]
[1751183713330,5.66768948,2438.8,2438.7,5.65827987]
[1751183715336,3.59593974,2438.8,2438.7,5.65827987]
[1751183717434,3.59593974,2438.8,2438.7,2.45047987]
[1751183717635,3.59593974,2438.8,2438.7,5.65827987]
[1751183720238,2.77614974,2438.8,2438.7,5.65827987]
[1751183720442,3.59593974,2438.8,2438.7,5.65827987]
[1751183721635,3.59593974,2438.8,2438.7,2.45047987]
[1751183721833,3.59593974,2438.8,2438.7,5.65827987]
[1751183723541,2.77614974,2438.8,2438.7,5.65827987]
[1751183724537,3.59593974,2438.8,2438.7,5.65827987]
[1751183724742,2.77614974,2438.8,2438.7,5.65827987]
[1751183728143,3.59593974,2438.8,2438.7,5.65827987]
[1751183730648,2.77614974,2438.8,2438.7,5.65827987]
[1751183731644,3.59593974,2438.8,2438.7,5.65827987]
[1751183732748,0.7044,2438.8,2438.7,5.65827987]
[1751183732941,2.77614974,2438.8,2438.7,5.65827987]
[1751183733651,2.77614974,2438.8,2438.7,2.45047987]
[1751183733842,2.77614974,2438.8,2438.7,5.65827987]
[1751183735350,3.59593974,2438.8,2438.7,5.65827987]